[Event "Frauenbundesliga 2021-22"]
[Site "Germany"]
[Date "2022.05.26"]
[Round "3.9"]
[White "Zatonskih, Anna"]
[Black "Frey, Alisa"]
[Result "1-0"]
[ECO "A16"]
[WhiteElo "2386"]
[BlackElo "1998"]
[Annotator "TA"]
[PlyCount "93"]
[EventDate "2021.11.26"]
[EventType "team-tourn"]
[EventCountry "GER"]
[SourceTitle "playchess.com"]
[Source "ChessBase"]
[SourceQuality "1"]
[WhiteTeam "Baden-Baden"]
[BlackTeam "Hemer"]
[TimeControl "40/5400+30:1800+30"]

{[%evp 17,93,57,54,56,79,56,52,48,57,58,78,58,63,47,91,73,69,69,119,102,270,258,266,269,247,260,248,266,248,204,152,152,143,143,161,150,165,166,196,167,318,314,316,309,300,317,312,314,305,301,354,366,359,354,376,372,373,363,355,295,276,268,483,475,460,450,431,429,1652,1785,1413,1409,1922,1918,1848,1887,1050,834]} 1. Nf3 {[%emt 0:00:08]} Nf6 {[%emt 0:00:08]} 2. c4 {[%emt 0:00:05]} g6 {[%emt 0:00:11]} 3. Nc3 {[%emt 0:00:07]} d5 {[%emt 0:00:22]} 4. cxd5 {[%emt 0:01:03]} Nxd5 {[%emt 0:00:29]} 5. e4 {[%emt 0:00:18]} Nxc3 {[%emt 0:00:20]} 6. dxc3 {[%emt 0:00:05]} Qxd1+ {[%emt 0:00:17]} 7. Kxd1 {[%emt 0:00:02]} Bg7 {[%emt 0:04:17]} 8. Bf4 {[%emt 0:04:25]} c6 {[%emt 0:03:45]} 9. Kc2 {[%emt 0:00:20]} Nd7 {[%emt 0:02:46]} 10. a4 {[%emt 0:05:54] A16: English Opening: 1...Nf6 with ...d5.} a5 {[%emt 0:03:56]} 11. Nd2 {[%emt 0:12:46][%cal Bf3d2,Bd2c4,Bc4a3,Ba3b5][%mdl 32] [#]} Be5 $146 {[%emt 0:24:44]} ({Predecessor:} 11... Ne5 12. Nc4 Nxc4 13. Bxc4 e5 14. Be3 Bf6 15. Rhd1 Bd8 16. Bh6 Bc7 17. Rd2 Rg8 {1-0 (42) Spiridonov,N (2359)-Janakiev,I (2232) Sofia 2009}) 12. Bh6 {[%emt 0:05:19] White is slightly better.} Nc5 {[%emt 0:04:02]} 13. Be3 {[%emt 0:05:45]} Ne6 {[%emt 0:00:56]} 14. g3 {[%emt 0:05:57]} Bc7 {[%emt 0:05:23]} 15. Nc4 {[%emt 0:03:08]} c5 {[%emt 0:05:09]} 16. Na3 {[%emt 0:09:14]} Bd7 {[%emt 0:02:07]} 17. Nb5 {[%emt 0:00:35]} Bb8 {[%emt 0:02:22]} (17... b6 $14) 18. Bc4 $16 {[%emt 0:02:03]} b6 $2 {[%emt 0:11:19] [#] This costs Black the game.} (18... Bc6 $16) 19. Bd5 $1 $18 {[%emt 0:04:29]} Ra6 {[%emt 0:00:05]} 20. Bb7 {[%emt 0:00:09]} Bxb5 {[%emt 0:00:08]} 21. axb5 {[%emt 0:00:03]} Ra7 {[%emt 0:00:10]} 22. Bc6+ {[%emt 0:00:12]} Kd8 {[%emt 0:01:55]} 23. f4 {[%emt 0:09:05][%cal Ob2b4] Black must now prevent b4!} Kc8 {[%emt 0:05:00]} 24. Rhf1 {[%emt 0:04:50]} Nd8 {[%emt 0:03:16]} 25. Bd5 {[%emt 0:01:57][%cal Bc6d5,Bd5c4,Bc4d3][%mdl 32] 0x0.0021dd0debcfdp-1022s more active pieces.} e6 {[%emt 0:00:46]} 26. Bc4 {[%emt 0:00:05]} h5 {[%emt 0:07:26]} 27. e5 {[%emt 0:03:58]} Kd7 {[%emt 0:07:12]} 28. Bd3 {[%emt 0:02:49]} Ke7 $2 {[%emt 0:01:34]} (28... Nb7 29. Be4 Bc7 30. Rfd1+ Kc8) 29. b4 {[%emt 0:03:59]} Nb7 {[%emt 0:02:25]} 30. Be4 {[%emt 0:01:50]} Rc8 {[%emt 0:00:57]} 31. Bxb7 {[%emt 0:04:15]} Rxb7 {[%emt 0:00:04]} 32. bxa5 {[%emt 0:00:03]} bxa5 {[%emt 0:01:33]} 33. Rfb1 {[%emt 0:01:29]} ({Weaker is} 33. Rxa5 Bc7 34. Bxc5+ Ke8 $16) 33... Ba7 {[%emt 0:00:21]} 34. Rxa5 {[%emt 0:00:39]} Bb6 {[%emt 0:00:19]} 35. Ra6 {[%emt 0:00:07]} Kd7 {[%emt 0:00:28]} 36. Rd1+ {[%emt 0:01:09]} Ke8 {[%emt 0:00:57]} 37. h3 {[%emt 0:03:54][%cal Bh2h3,Bh3g4][%mdl 32]} Rd8 {[%emt 0:00:48]} 38. Rh1 {[%emt 0:00:33]} Kd7 {[%emt 0:00:34]} 39. g4 {[%emt 0:00:37]} hxg4 {[%emt 0:00:09]} (39... Kc7 40. gxh5 gxh5) 40. hxg4 {[%emt 0:00:02] White is clearly winning.} Kc7 {[%emt 0:00:49] [#]} 41. Bxc5 {[%emt 0:33:48][%mdl 512]} Bxc5 {[%emt 0:08:08]} 42. Rc6+ {[%emt 0:00:00]} Kd7 {[%emt 0:00:05]} (42... Kb8 $142) 43. Rd1+ {[%emt 0:00:00]} Ke7 {[%emt 0:00:06]} 44. Rxd8 {[%emt 0:00:00][%cal Oc6c5]} Kxd8 {[%emt 0:01:26]} 45. Rxc5 {[%emt 0:00:00]} Ra7 {[%emt 0:01:46]} 46. Kb3 {[%emt 0:00:00]} Ra1 {[%emt 0:00:32]} 47. Kb4 {[%emt 0:00:00] Weighted Error Value: White=0.07 (flawless) /Black=0.29 (precise)} 1-0

[Event "Frauenbundesliga 2021-22"]
[Site "Germany"]
[Date "2022.05.26"]
[Round "3.10"]
[White "Moeller, Lisa-Marie"]
[Black "Salimova, Nurgyul"]
[Result "0-1"]
[ECO "B14"]
[WhiteElo "1927"]
[BlackElo "2418"]
[Annotator "TA"]
[PlyCount "84"]
[EventDate "2021.11.26"]
[EventType "team-tourn"]
[EventCountry "GER"]
[SourceTitle "playchess.com"]
[Source "ChessBase"]
[SourceQuality "1"]
[WhiteTeam "Hemer"]
[BlackTeam "Baden-Baden"]
[TimeControl "40/5400+30:1800+30"]

{[%evp 15,84,0,0,-40,-24,-54,-53,-67,-61,-57,-35,-64,-81,-105,-105,-131,-118,-135,-129,-136,-118,-114,-114,-131,-112,-122,-126,-139,-113,-114,-93,-206,-201,-310,-341,-404,-398,-799,-785,-769,-764,-1037,-1026,-991,-976,-1156,-1040,-1172,-1172,-1677,-1377,-2112,-1980,-5265,-5619,-5393,-5883,-6087,-6079,-29979,-29980,-29980,-29981,-29981,-29981,-29981,-29982,-29982,-29983,-29982,-29982]} 1. e4 {[%emt 0:00:02]} c6 {[%emt 0:00:08]} 2. d4 {[%emt 0:00:05]} d5 {[%emt 0:00:03]} 3. exd5 {[%emt 0:00:06]} cxd5 {[%emt 0:00:06]} 4. c4 {[%emt 0:00:05]} Nf6 {[%emt 0:00:16]} 5. Nc3 {[%emt 0:00:07]} g6 {[%emt 0:01:29]} 6. Qb3 {[%emt 0:00:55]} Bg7 {[%emt 0:00:28]} 7. cxd5 {[%emt 0:00:33]} O-O {[%emt 0:00:30]} 8. Nf3 {[%emt 0:02:06]} Nbd7 {[%emt 0:03:32]} 9. Bf4 {[%emt 0:07:16] B14: Caro-Kann: Panov-Botvinnik Attack with 5...e6 and 5...g6.} Nb6 {[%emt 0:02:14][%cal Rf6d5] [#]} 10. Bd3 $146 {[%emt 0:07:05][%cal Od5d6]} ({Predecessor:} 10. Bc4 Nxc4 11. Qxc4 a6 12. Qb3 b5 13. a4 Bb7 14. axb5 axb5 15. O-O Nxd5 16. Be5 Nxc3 17. Qxc3 {0-1 (58) Zhao,J (2619)-Rustemov,A (2525) Chess.com INT 2022}) 10... Nfxd5 {[%emt 0:00:54]} 11. Nxd5 {[%emt 0:03:29] Black is slightly better.} Nxd5 {[%emt 0:02:03]} 12. Bd2 {[%emt 0:05:46]} Nb6 {[%emt 0:10:45]} 13. Be3 {[%emt 0:08:07]} Be6 {[%emt 0:00:48]} 14. Qd1 {[%emt 0:05:19]} Nc4 {[%emt 0:02:49]} 15. Qe2 {[%emt 0:12:35]} Qa5+ {[%emt 0:01:05]} 16. Bd2 {[%emt 0:00:53]} Nxd2 {[%emt 0:00:10] 0x0.001a28240bd4dp-1022s more active pieces. The white rooks are badly placed.} 17. Qxd2 {[%emt 0:00:49]} Qxd2+ {[%emt 0:00:59]} 18. Kxd2 {[%emt 0:00:22]} Rfd8 {[%emt 0:01:04]} 19. Ke3 {[%emt 0:06:52]} Rac8 {[%emt 0:03:52]} 20. Rhe1 {[%emt 0:11:24]} Bd5 {[%emt 0:02:35] This bishop pair is nice.} 21. Rad1 {[%emt 0:03:44]} a6 {[%emt 0:03:26]} 22. b3 {[%emt 0:01:59]} e6 {[%emt 0:03:16]} 23. Ne5 {[%emt 0:12:14]} (23. g3 $17 {is a better defense.}) 23... Bxg2 $19 {[%emt 0:11:22]} 24. f3 {[%emt 0:02:46]} (24. Rg1 $142 Bd5 25. Rc1) 24... Bxe5 {[%emt 0:00:34]} 25. dxe5 {[%emt 0:00:28]} Rc3 {[%emt 0:00:52]} 26. Re2 $2 {[%emt 0:01:40] [#]} (26. Rg1 Bxf3 27. Kxf3 Rcxd3+ 28. Rxd3 Rxd3+ 29. Kf4) 26... Rcxd3+ $1 {[%emt 0:07:57][%mdl 512]} 27. Rxd3 {[%emt 0:00:31]} Rxd3+ {[%emt 0:00:06]} 28. Kxd3 {[%emt 0:00:08][%mdl 4096] Endgame KR-KB} Bf1 {[%emt 0:00:09]} 29. Ke3 {[%emt 0:00:52]} Bxe2 {[%emt 0:00:05]} 30. Kxe2 {[%emt 0:00:03] KP-KP} g5 {[%emt 0:04:34]} 31. Ke3 {[%emt 0:01:48]} f5 {[%emt 0:03:17]} 32. exf6 {[%emt 0:02:57]} Kf7 {[%emt 0:00:07]} 33. Ke4 {[%emt 0:01:54]} Kxf6 {[%emt 0:00:06]} 34. h3 {[%emt 0:00:18]} e5 {[%emt 0:01:08]} 35. b4 {[%emt 0:01:23]} Ke6 {[%emt 0:00:34]} 36. a4 {[%emt 0:00:20]} b5 {[%emt 0:00:32]} 37. axb5 {[%emt 0:00:30]} axb5 {[%emt 0:00:06] Black mates.} 38. Ke3 {[%emt 0:00:29]} Kd5 {[%emt 0:00:15]} 39. Kd3 {[%emt 0:00:30]} h6 {[%emt 0:00:29][%cal Bh7h6,Bh6h5][%mdl 32]} 40. Kc3 {[%emt 0:00:39]} e4 {[%emt 0:00:15]} 41. fxe4+ {[%emt 0:30:25]} Kxe4 {[%emt 0:30:06]} 42. Kc2 {[%emt 0:00:23]} h5 {[%emt 0:00:06] White did not feel at home in the position after the opening.  Weighted Error Value: White=1.05/Black=0.08 (flawless)} 0-1

[Event "Frauenbundesliga 2021-22"]
[Site "Germany"]
[Date "2022.05.26"]
[Round "3.11"]
[White "Heinemann, Josefine"]
[Black "Naumenko, Valerija"]
[Result "1-0"]
[ECO "C54"]
[WhiteElo "2300"]
[BlackElo "1750"]
[Annotator "TA"]
[PlyCount "53"]
[EventDate "2021.11.26"]
[EventType "team-tourn"]
[EventCountry "GER"]
[SourceTitle "playchess.com"]
[Source "ChessBase"]
[SourceQuality "1"]
[WhiteTeam "Baden-Baden"]
[BlackTeam "Hemer"]
[TimeControl "40/5400+30:1800+30"]

{[%evp 14,53,29,10,12,12,15,6,24,9,17,22,23,27,24,23,20,11,25,15,20,11,22,13,46,50,86,93,82,110,228,207,332,309,405,400,499,464,862,875,1370,1393]} 1. e4 {[%emt 0:00:04]} e5 {[%emt 0:00:05]} 2. Nf3 {[%emt 0:00:07]} Nc6 {[%emt 0:00:06]} 3. Bc4 {[%emt 0:00:12]} Bc5 {[%emt 0:00:05]} 4. c3 {[%emt 0:00:13]} Nf6 {[%emt 0:00:05]} 5. d3 {[%emt 0:00:07]} h6 {[%emt 0:00:56]} 6. O-O {[%emt 0:00:49]} d6 {[%emt 0:01:08]} 7. Re1 {[%emt 0:00:57]} O-O {[%emt 0:00:36]} 8. h3 {[%emt 0:00:33]} a6 {[%emt 0:00:48] C54: Giuoco Piano: 4 c3 Nf6, main lines with 5 d4 and 5 d3.} 9. a4 {[%emt 0:00:19]} Ba7 {[%emt 0:03:41]} 10. Nbd2 {[%emt 0:02:00]} Re8 {[%emt 0:09:19] The position is equal.} 11. b4 $1 {[%emt 0:02:21] The main line 11.b4 scores better than 11.Nf1.} Ne7 {[%emt 0:09:13]} 12. Qb3 {[%emt 0:02:58]} Rf8 {[%emt 0:06:40][%cal Ob7b5]} 13. d4 {[%emt 0:00:42]} Ng6 {[%emt 0:01:13]} 14. a5 {[%emt 0:00:46]} c6 {[%emt 0:12:20] [#]} 15. Bf1 $146 {[%emt 0:02:30]} ({Predecessor:} 15. dxe5 dxe5 16. Nf1 Nh5 17. Be3 Nhf4 18. Bxa7 Rxa7 19. Rad1 Qf6 20. N1h2 Ra8 21. Kh1 Be6 22. h4 Rad8 23. Bxe6 Nxe6 24. g3 {½-½ (24) Sekowski,P (2323)-Gnilka,T (2325) ICCF email 2017}) 15... Be6 {[%emt 0:08:09]} 16. Qc2 {[%emt 0:00:43]} Nh5 {[%emt 0:09:33]} 17. Bb2 {[%emt 0:13:43]} Nhf4 {[%emt 0:15:32]} 18. c4 {[%emt 0:06:34]} exd4 {[%emt 0:01:55]} 19. Nxd4 {[%emt 0:01:02]} Bxd4 {[%emt 0:01:51]} 20. Bxd4 {[%emt 0:01:01]} Qg5 {[%emt 0:01:04][%cal Of4g2] [#] And now ...Nxg2! would win.} 21. Kh2 {[%emt 0:05:05]} Nh4 {[%emt 0:03:53]} (21... Rfd8 $16 {might work better.}) 22. Ra3 $18 {[%emt 0:04:03] Hoping for Rg3.} Nfxg2 {[%emt 0:08:55]} (22... Nhxg2 $142 23. Rg3 Nxe1) 23. Rd1 {[%emt 0:05:37] aiming for Rg3.} Qf4+ {[%emt 0:02:48]} 24. Rg3 {[%emt 0:00:31]} g5 {[%emt 0:02:35]} 25. Bxg2 {[%emt 0:00:32] White is clearly winning.} f6 {[%emt 0:00:00]} (25... Kh7 $142 26. Kg1 Nxg2 27. Kxg2 Rg8) 26. Be3 {[%emt 0:00:52]} Qe5 {[%emt 0:00:22]} 27. f4 {[%emt 0:00:08] Weighted Error Value: White=0.06 (flawless) /Black=0.38} 1-0

[Event "Frauenbundesliga 2021-22"]
[Site "Germany"]
[Date "2022.05.26"]
[Round "3.12"]
[White "Dartmann Aubanell, Catriona"]
[Black "Tammert, Iamze"]
[Result "0-1"]
[ECO "B22"]
[WhiteElo "1874"]
[BlackElo "2302"]
[Annotator "TA"]
[PlyCount "28"]
[EventDate "2021.11.26"]
[EventType "team-tourn"]
[EventCountry "GER"]
[SourceTitle "playchess.com"]
[Source "ChessBase"]
[SourceQuality "1"]
[WhiteTeam "Hemer"]
[BlackTeam "Baden-Baden"]
[TimeControl "40/5400+30:1800+30"]

{[%evp 15,28,22,19,22,14,-15,-22,-30,-18,-18,-20,-68,-43,-225,-231]} 1. e4 {[%emt 0:00:09][%cal Be2e4,Be4e5][%mdl 32]} c5 {[%emt 0:00:08]} 2. Nf3 {[%emt 0:00:20]} Nf6 {[%emt 0:00:06]} 3. e5 {[%emt 0:00:18]} Nd5 {[%emt 0:00:05]} 4. c3 {[%emt 0:00:56]} e6 {[%emt 0:00:51]} 5. d4 {[%emt 0:00:16]} cxd4 {[%emt 0:01:07]} 6. cxd4 {[%emt 0:00:06]} Nc6 {[%emt 0:00:28]} 7. Bc4 {[%emt 0:01:04]} d6 {[%emt 0:09:56] The main line 7...d6 scores better than 7...Nb6.} 8. O-O {[%emt 0:01:41]} Be7 {[%emt 0:07:27]} 9. Bd2 {[%emt 0:05:35] B22: Sicilian: 2 c3.} O-O {[%emt 0:10:10]} 10. Qe2 {[%emt 0:09:52]} Qb6 {[%emt 0:03:14][%csl LRb2,LRd4]} 11. Nc3 {[%emt 0:15:44]} Nxd4 {[%emt 0:12:11]} 12. Nxd4 {[%emt 0:01:20]} Qxd4 {[%emt 0:00:01] [#]} 13. Nxd5 $146 {[%emt 0:05:54]} (13. exd6 $11 {is superior.} Bxd6 14. Rad1 (14. Nb5 Qe5 $15)) ({Predecessor:} 13. exd6 Bxd6 14. Nb5 Qe5 15. Nxd6 Qxd6 16. Rad1 Bd7 17. Bxd5 exd5 18. Bc3 Rfe8 19. Qh5 {0-1 (45) Krayz,A (2350)-Mchedlishvili,M (2570) Chess.com INT 2020}) 13... exd5 $15 {[%emt 0:00:13]} 14. Bd3 {[%emt 0:02:45] [#]} (14. exd6 $15 Bxd6 15. Bb3) 14... Bg4 $1 {[%emt 0:00:39] White did not feel at home in the position after the opening.  Weighted Error Value: White=0.62/Black=0.00 (flawless)} ({Worse is} 14... dxe5 15. Bc3 Bg4 16. Qxe5 Qxe5 17. Bxe5 $17) ({Weaker is} 14... Qxe5 15. Qf3 $17) 0-1

[Event "Frauenbundesliga 2021-22"]
[Site "Germany"]
[Date "2022.05.26"]
[Round "3.13"]
[White "Klek, Hanna Marie"]
[Black "Sieber, Fiona"]
[Result "1-0"]
[ECO "B90"]
[WhiteElo "2362"]
[BlackElo "2264"]
[Annotator "TA"]
[PlyCount "81"]
[EventDate "2021.11.26"]
[EventType "team-tourn"]
[EventCountry "GER"]
[SourceTitle "playchess.com"]
[Source "ChessBase"]
[SourceQuality "1"]
[WhiteTeam "Deizisau"]
[BlackTeam "Lehrte"]
[TimeControl "40/5400+30:1800+30"]

{[%evp 10,81,24,22,15,0,9,-17,0,-45,-24,-25,13,-52,0,0,0,18,38,39,33,37,47,35,41,0,0,-79,-38,-43,-41,-41,-34,-56,-60,-83,8,0,136,-142,-145,-191,-202,-193,-175,-188,-187,-173,-173,-148,-89,-80,-87,-121,134,116,131,126,179,183,1150,1135,1455,1189,29982,29983,29983,29984,29992,29972,29989,29988,29993,6344]} 1. e4 {[%emt 0:00:03]} c5 {[%emt 0:00:03]} 2. Nf3 {[%emt 0:00:03]} d6 {[%emt 0:00:03]} 3. d4 {[%emt 0:00:05]} cxd4 {[%emt 0:00:03]} 4. Nxd4 {[%emt 0:00:05]} Nf6 {[%emt 0:00:03]} 5. Nc3 {[%emt 0:00:05]} a6 {[%emt 0:00:03]} 6. Nb3 {[%emt 0:00:06]} g6 {[%emt 0:04:07] B90: Sicilian Najdorf: Unusual White 6th moves, 6 Be3 Ng4 and 6 Be3 e5.} 7. Bg5 {[%emt 0:08:26]} Bg7 {[%emt 0:01:29] [#]} 8. Qe2 $146 {[%emt 0:03:40]} ({Predecessor:} 8. Qd2 h6 9. Bf4 b5 10. f3 Nbd7 11. O-O-O Bb7 12. a3 Rc8 13. g4 h5 14. g5 {1-0 (49) Pridorozhni,A (2555)-Kalashian,D (2398) Chess.com INT 2021}) 8... Nbd7 {[%emt 0:09:19] The position is equal.} 9. O-O-O {[%emt 0:06:41]} b5 {[%emt 0:11:24]} 10. h4 {[%emt 0:10:13][%cal Oh4h5]} h6 {[%emt 0:05:22]} 11. Bf4 {[%emt 0:05:55]} (11. Bxf6 $11 Bxf6 12. Nd5) 11... Nh5 {[%emt 0:04:29]} (11... Bb7 $15) 12. Bd2 $1 $11 {[%emt 0:01:47]} Ne5 $36 {[%emt 0:00:19][%mdl 2048] Hoping for ...Bg4. White is under pressure.} 13. Nd5 {[%emt 0:06:51] Strongly threatening Ba5.} Nc4 {[%emt 0:15:11] Against Ba5} 14. Bc3 {[%emt 0:00:31]} Bxc3 {[%emt 0:00:46]} 15. Nxc3 {[%emt 0:00:15]} Bb7 {[%emt 0:07:22]} 16. Qe1 {[%emt 0:12:41]} Rc8 {[%emt 0:01:51]} 17. g3 {[%emt 0:02:07]} Nf6 {[%emt 0:01:59]} 18. Bh3 {[%emt 0:06:49]} (18. f3 $11) 18... e6 $17 {[%emt 0:04:46]} 19. f3 $1 {[%emt 0:03:59]} Nd7 {[%emt 0:03:32]} 20. Kb1 {[%emt 0:04:49]} b4 {[%emt 0:07:59]} 21. Ne2 {[%emt 0:05:37]} a5 {[%emt 0:02:33]} ({Don't play} 21... Qf6 22. Ned4 $11) 22. Ned4 {[%emt 0:04:15][%cal Od4e6]} Ndb6 {[%emt 0:05:32]} (22... Qb6 $1 $17) 23. Bf1 $11 {[%emt 0:04:57]} Qf6 {[%emt 0:01:39]} (23... h5 $1 $11) 24. f4 $2 {[%emt 0:02:45][%mdl 8192]} (24. h5 $16) 24... O-O $1 $17 {[%emt 0:00:18]} 25. Rh2 {[%emt 0:05:22]} (25. h5 $17 g5 26. Rg1) 25... e5 $19 {[%emt 0:02:55]} 26. fxe5 {[%emt 0:00:17]} dxe5 {[%emt 0:00:27]} 27. Rf2 {[%emt 0:00:51]} Qe7 {[%emt 0:00:27]} 28. Nf3 {[%emt 0:01:28]} a4 {[%emt 0:04:11]} 29. Nbd2 {[%emt 0:00:47][%cal Bb3d2,Bd2f3,Bf3h4][%mdl 32] [#]} Na5 {[%emt 0:05:18]} ({Better is} 29... Nxb2 $1 {[%mdl 512]} 30. Kxb2 Qc5) 30. Qe3 $17 {[%emt 0:00:40][%csl LRb6,LRh6]} Qc7 {[%emt 0:00:44]} 31. Bd3 {[%emt 0:00:28] [#]} Kg7 {[%emt 0:00:30][%mdl 8192] [#]} (31... Ba6 $1 $17 {[%cal Ra6d3][%mdl 512] And now ...Bxd3 would win.} 32. Nf1 (32. Nc4 Naxc4) 32... Bxd3 33. cxd3 Kg7) 32. Nxe5 $16 {[%emt 0:02:07][%mdl 512]} Qxe5 {[%emt 0:00:59]} 33. Qxb6 {[%emt 0:00:08]} Rb8 {[%emt 0:00:40]} (33... a3 $16 {was necessary.} 34. Qxb4 axb2) 34. Nf3 $18 {[%emt 0:00:39] The board is on fire.} ({Not} 34. Qxb4 Bxe4 35. Qa3 Bxd3 36. cxd3 Nc6 $14) 34... Qxg3 {[%emt 0:00:15]} (34... Bc8) 35. Rg1 {[%emt 0:00:44]} Qh3 {[%emt 0:00:51]} 36. Qxa5 {[%emt 0:00:28] aiming for h5.} a3 {[%emt 0:00:27]} 37. Qe5+ {[%emt 0:00:32] White mates.} Kh7 {[%emt 0:00:11]} 38. h5 {[%emt 0:01:32]} Qd7 {[%emt 0:00:42]} 39. Nh4 {[%emt 0:00:34]} Rbe8 {[%emt 0:00:19]} 40. Qf6 {[%emt 0:00:31]} Rg8 {[%emt 0:00:51] [#]} 41. Qxf7+ {[%emt 0:30:23] Weighted Error Value: White=0.28 (precise) /Black=0.54} (41. Rxg6 $142 $1 fxg6 42. hxg6+ Rxg6 43. Qxg6+ Kh8 44. Rg2 axb2 45. Qxh6+ Qh7 46. Qf6+ Qg7 47. Qxg7#) 1-0

[Event "Frauenbundesliga 2021-22"]
[Site "Germany"]
[Date "2022.05.26"]
[Round "3.14"]
[White "Newrkla, Katharina"]
[Black "Gaponenko, Inna"]
[Result "1-0"]
[ECO "B33"]
[WhiteElo "2232"]
[BlackElo "2332"]
[Annotator "TA"]
[PlyCount "110"]
[EventDate "2021.11.26"]
[EventType "team-tourn"]
[EventCountry "GER"]
[SourceTitle "playchess.com"]
[Source "ChessBase"]
[SourceQuality "1"]
[WhiteTeam "Lehrte"]
[BlackTeam "Deizisau"]
[TimeControl "40/5400+30:1800+30"]

{[%evp 24,110,24,25,65,52,77,47,47,43,37,36,39,40,49,43,37,25,24,29,118,124,109,119,116,114,107,95,104,105,101,112,137,137,139,139,144,106,113,91,142,132,159,164,227,206,464,450,707,615,29982,29983,29983,29984,29983,12337,7483,6468,2799,1786,29983,29984,29986,29985,29989,3461,1857,1710,2910,1642,29972,29972,29982,4729,1744,967,1413,1111,960,927,5435,5332,5173,4133,29983,29984,29984,29985,29985]} 1. e4 {[%emt 0:00:03]} c5 {[%emt 0:00:04]} 2. Nf3 {[%emt 0:00:03]} Nc6 {[%emt 0:00:05]} 3. d4 {[%emt 0:00:05]} cxd4 {[%emt 0:00:05]} 4. Nxd4 {[%emt 0:00:04]} Nf6 {[%emt 0:00:05]} 5. Nc3 {[%emt 0:00:06]} e5 {[%emt 0:00:04]} 6. Ndb5 {[%emt 0:00:06]} d6 {[%emt 0:00:06]} 7. Nd5 {[%emt 0:04:12]} Nxd5 {[%emt 0:09:27]} 8. exd5 {[%emt 0:02:03]} Ne7 {[%emt 0:00:09]} 9. c4 {[%emt 0:00:25]} Nf5 {[%emt 0:06:37]} 10. Bd3 {[%emt 0:03:41]} Be7 {[%emt 0:04:06]} 11. O-O {[%emt 0:01:38]} O-O {[%emt 0:08:01]} 12. a4 {[%emt 0:09:36]} a6 {[%emt 0:16:40]} 13. Nc3 {[%emt 0:00:33]} a5 {[%emt 0:01:16] B33: Sicilian: Pelikan and Sveshnikov Variations.} 14. Nb5 {[%emt 0:05:47]} Bd7 {[%emt 0:01:25]} 15. Bd2 {[%emt 0:12:42] [#]} Bf6 $146 {[%emt 0:11:05] White is slightly better.} ({Predecessor:} 15... Qb6 16. Re1 Rfc8 17. Bc3 g6 18. Qf3 Bg5 19. b3 Re8 20. Re4 h5 21. c5 dxc5 22. Bxe5 Bxb5 23. Bxb5 {½-½ (31) Rihtaric,I (1930)-Garus,E (2096) ICCF email 2008}) 16. Ra3 {[%emt 0:04:33]} Re8 {[%emt 0:03:22]} 17. Re1 {[%emt 0:04:55]} g6 {[%emt 0:11:26]} 18. b4 {[%emt 0:03:49]} axb4 {[%emt 0:08:06]} 19. Bxb4 {[%emt 0:00:06]} Bxb5 {[%emt 0:00:27]} 20. cxb5 {[%emt 0:01:04]} Nd4 {[%emt 0:03:13]} 21. a5 {[%emt 0:06:27][%cal Ba4a5,Ba5a6][%mdl 32]} b6 {[%emt 0:04:54]} (21... e4 $11 22. Rxe4 Rxe4 23. Bxe4 Nxb5) 22. a6 $16 {[%emt 0:01:20]} Qd7 {[%emt 0:00:15]} 23. Bc3 {[%emt 0:11:32]} Rec8 {[%emt 0:01:18]} (23... Nxb5 $2 24. Qa4 Rxa6 25. Qxa6 $18) 24. Bxd4 {[%emt 0:02:39]} exd4 {[%emt 0:00:02]} 25. Qf3 {[%emt 0:00:19]} Kg7 {[%emt 0:01:18]} 26. g3 {[%emt 0:02:06] White is more active.} h5 {[%emt 0:04:43]} 27. h4 {[%emt 0:00:31]} Rc3 {[%emt 0:03:15]} 28. Rxc3 {[%emt 0:00:23]} dxc3 {[%emt 0:00:02]} 29. Qe3 {[%emt 0:01:58]} Qc7 {[%emt 0:01:55]} 30. Qe4 {[%emt 0:02:25]} Rc8 {[%emt 0:00:15]} 31. Re2 {[%emt 0:02:08]} Qb8 {[%emt 0:00:46]} (31... Be5 $142) 32. f4 {[%emt 0:10:52][%cal Og3g4,Bf2f4,Bf4f5][%mdl 32] And now g4! would win.} Qc7 {[%emt 0:00:23]} 33. Kg2 {[%emt 0:00:40]} Qc5 {[%emt 0:00:16]} (33... Qd8 $142 34. Bc2 Kf8) 34. f5 $18 {[%emt 0:02:57][%cal Rf5g6]} Rc7 $2 {[%emt 0:01:00]} ({Not} 34... g5 35. hxg5 Bxg5 36. f6+ Bxf6 37. Qf5 $16 (37. Qh7+ Kf8 $16)) (34... Qd4 35. Qxd4 (35. fxg6 Qxe4+ 36. Bxe4 fxg6 $16) 35... Bxd4) 35. fxg6 {[%emt 0:00:25]} Re7 {[%emt 0:00:04]} (35... Qd4 $142 36. Qf5 Qg4 37. Qxg4 hxg4) 36. Qf3 {[%emt 0:02:11] [#] Rxe7 would kill now.} fxg6 {[%emt 0:01:35]} 37. Rxe7+ {[%emt 0:00:16]} Bxe7 {[%emt 0:00:01] KQB-KQB} 38. Qe4 {[%emt 0:00:23]} Kf8 {[%emt 0:00:12]} 39. Qxg6 {[%emt 0:03:01]} (39. Qe6 $142 Qc7 40. Bxg6 Bxh4 41. gxh4 c2 42. Qf5+ Kg8 43. Qxc2 Qd7 44. Bxh5) 39... Qxd5+ {[%emt 0:00:33]} 40. Qe4 {[%emt 0:00:22]} Qa2+ {[%emt 0:00:20]} 41. Kh3 {[%emt 0:31:41]} d5 {[%emt 0:09:52] Against Bc4} 42. Qf5+ {[%emt 0:00:00]} Kg7 {[%emt 0:07:28]} 43. Qh7+ {[%emt 0:00:00]} Kf6 {[%emt 0:01:14]} 44. Qh8+ {[%emt 0:00:00]} (44. Qh6+ $142 Ke5 45. Qf4+ Ke6 46. Bf5+ Kf7 47. Bb1+ Bf6 48. Bxa2 Ke6 49. a7) 44... Ke6 {[%emt 0:09:48]} 45. Qxc3 {[%emt 0:00:00] [#] Hoping for Qe1+.} Bc5 {[%emt 0:04:09]} 46. Qe1+ {[%emt 0:00:00]} Kd6 {[%emt 0:00:08]} 47. Bf5 {[%emt 0:00:00]} Bd4 {[%emt 0:00:26]} 48. Qe6+ {[%emt 0:00:00]} (48. Qb4+ $142 Bc5 49. Qf4+ Ke7 50. Qe5+ Kf8 51. Be6 Qf2 52. Bxd5 Qf1+ 53. Bg2) 48... Kc5 {[%emt 0:00:05]} 49. Qc6+ {[%emt 0:00:00]} Kb4 {[%emt 0:00:05]} 50. Qc2 {[%emt 0:00:00]} Qa5 {[%emt 0:02:40]} 51. Qd2+ {[%emt 0:00:00]} Bc3 {[%emt 0:00:05]} 52. Qxd5 {[%emt 0:00:00] Threatening mate with Be6.} Qa1 {[%emt 0:00:03]} 53. Bd3 {[%emt 0:03:11] White wants to mate with Qc4+.} Bg7 {[%emt 0:01:22]} 54. Qc4+ {[%emt 0:00:56]} Ka3 {[%emt 0:00:36]} 55. Be4 {[%emt 0:00:56]} Kb2 {[%emt 0:01:03] Weighted Error Value: White=0.07 (flawless) /Black=0.88} 1-0